[Event "Early-Titled-Tuesday-Blitz-March-19-2024"]
[Site "Chess.com"]
[Date "2024.03.19"]
[Round "11"]
[White "maciek_92"]
[Black "SuperPower2011"]
[Result "1/2-1/2"]
[WhiteElo "2898"]
[BlackElo "2786"]
[TimeControl "180+1"]
[EndTime "10:09:02 PDT"]
[Termination "Game drawn - insufficient material"]

1. c4 {[%clk 0:03:00.9]} 1... c5 {[%clk 0:02:32.2]} 2. Nc3 {[%clk 0:02:54.9]}
2... Nf6 {[%clk 0:02:31]} 3. g3 {[%clk 0:02:54.8]} 3... d5 {[%clk 0:02:31.4]} 4.
cxd5 {[%clk 0:02:55.7]} 4... Nxd5 {[%clk 0:02:32.3]} 5. Bg2 {[%clk 0:02:56.4]}
5... Nc7 {[%clk 0:02:33]} 6. Nf3 {[%clk 0:02:56]} 6... Nc6 {[%clk 0:02:33.7]} 7.
O-O {[%clk 0:02:56.8]} 7... e5 {[%clk 0:02:34.3]} 8. d3 {[%clk 0:02:57.5]} 8...
Be7 {[%clk 0:02:30.6]} 9. Nd2 {[%clk 0:02:58.1]} 9... Bd7 {[%clk 0:02:17.3]} 10.
Nc4 {[%clk 0:02:43.3]} 10... f6 {[%clk 0:02:17.5]} 11. a4 {[%clk 0:02:42.9]}
11... O-O {[%clk 0:02:15.9]} 12. a5 {[%clk 0:02:41.9]} 12... Rb8 {[%clk
0:02:07.2]} 13. f4 {[%clk 0:02:41.9]} 13... Kh8 {[%clk 0:01:58.4]} 14. f5 {[%clk
0:02:36]} 14... Nd4 {[%clk 0:01:56.2]} 15. Be4 {[%clk 0:02:34.6]} 15... Bc6
{[%clk 0:01:55.2]} 16. e3 {[%clk 0:02:34.6]} 16... Bxe4 {[%clk 0:01:53.7]} 17.
Nxe4 {[%clk 0:02:34.8]} 17... Nc6 {[%clk 0:01:52.8]} 18. Qe2 {[%clk 0:02:30.6]}
18... Nb4 {[%clk 0:01:47.7]} 19. Ra3 {[%clk 0:02:25.5]} 19... Qd7 {[%clk
0:01:46.6]} 20. Bd2 {[%clk 0:02:24.7]} 20... Rbd8 {[%clk 0:01:40.2]} 21. Bxb4
{[%clk 0:02:23]} 21... cxb4 {[%clk 0:01:41.1]} 22. Raa1 {[%clk 0:02:23.4]} 22...
Qxd3 {[%clk 0:01:39.7]} 23. Qxd3 {[%clk 0:02:18]} 23... Rxd3 {[%clk 0:01:40.6]}
24. Kf2 {[%clk 0:02:14.7]} 24... Rfd8 {[%clk 0:01:35.9]} 25. Ke2 {[%clk
0:02:14]} 25... Kg8 {[%clk 0:01:31.3]} 26. g4 {[%clk 0:02:14.5]} 26... R3d7
{[%clk 0:01:08.7]} 27. Rac1 {[%clk 0:02:03.5]} 27... Nd5 {[%clk 0:01:08.4]} 28.
g5 {[%clk 0:02:02.8]} 28... Kf7 {[%clk 0:01:02.4]} 29. Rg1 {[%clk 0:01:59.4]}
29... Rc7 {[%clk 0:00:57.9]} 30. Rg4 {[%clk 0:01:57.9]} 30... b3 {[%clk
0:00:52]} 31. gxf6 {[%clk 0:01:54.6]} 31... gxf6 {[%clk 0:00:52.1]} 32. Rh4
{[%clk 0:01:50.9]} 32... Kg8 {[%clk 0:00:45.4]} 33. Rg1+ {[%clk 0:01:49.5]}
33... Kh8 {[%clk 0:00:45.8]} 34. Ned2 {[%clk 0:01:39.7]} 34... Bc5 {[%clk
0:00:31]} 35. Nxb3 {[%clk 0:01:32.6]} 35... Ne7 {[%clk 0:00:31.3]} 36. Rc1
{[%clk 0:00:59]} 36... Bb4 {[%clk 0:00:30.4]} 37. Rf1 {[%clk 0:00:56.5]} 37...
Rdc8 {[%clk 0:00:28.8]} 38. Nxe5 {[%clk 0:00:55]} 38... Rc2+ {[%clk 0:00:28.7]}
39. Kd3 {[%clk 0:00:54.2]} 39... fxe5 {[%clk 0:00:24.6]} 40. Rxb4 {[%clk
0:00:54.3]} 40... Rxb2 {[%clk 0:00:25.3]} 41. Rxb7 {[%clk 0:00:53.1]} 41... Nd5
{[%clk 0:00:21.5]} 42. f6 {[%clk 0:00:45.5]} 42... Rd8 {[%clk 0:00:21.1]} 43.
Ke4 {[%clk 0:00:44.4]} 43... Re2 {[%clk 0:00:19.8]} 44. Rf3 {[%clk 0:00:44.1]}
44... Nc3+ {[%clk 0:00:18.4]} 45. Kxe5 {[%clk 0:00:42.9]} 45... Rxh2 {[%clk
0:00:13.6]} 46. Nd4 {[%clk 0:00:39.4]} 46... Rh5+ {[%clk 0:00:12.1]} 47. Ke6
{[%clk 0:00:36.9]} 47... Ne4 {[%clk 0:00:09.5]} 48. Ke7 {[%clk 0:00:31.8]} 48...
Rg8 {[%clk 0:00:06.9]} 49. f7 {[%clk 0:00:31.2]} 49... Re5+ {[%clk 0:00:07.1]}
50. Ne6 {[%clk 0:00:31.9]} 50... Rxe6+ {[%clk 0:00:07.4]} 51. Kxe6 {[%clk
0:00:32.8]} 51... Nc5+ {[%clk 0:00:08.2]} 52. Ke7 {[%clk 0:00:31.3]} 52... Nxb7
{[%clk 0:00:08.6]} 53. fxg8=Q+ {[%clk 0:00:32]} 53... Kxg8 {[%clk 0:00:09.3]}
54. Rg3+ {[%clk 0:00:32.5]} 54... Kh8 {[%clk 0:00:09.4]} 55. a6 {[%clk
0:00:33.4]} 55... Nc5 {[%clk 0:00:09.3]} 56. Kf7 {[%clk 0:00:32.6]} 56... h5
{[%clk 0:00:07.8]} 57. Rg6 {[%clk 0:00:32.6]} 57... Kh7 {[%clk 0:00:07.9]} 58.
Rc6 {[%clk 0:00:33.2]} 58... Ne4 {[%clk 0:00:06.1]} 59. Rc7 {[%clk 0:00:33.7]}
59... h4 {[%clk 0:00:04.8]} 60. Ke6+ {[%clk 0:00:32.7]} 60... Kg6 {[%clk
0:00:05]} 61. Ke5 {[%clk 0:00:29.5]} 61... Nf2 {[%clk 0:00:04.7]} 62. Rxa7
{[%clk 0:00:29.6]} 62... h3 {[%clk 0:00:04.5]} 63. Ra8 {[%clk 0:00:30.4]} 63...
h2 {[%clk 0:00:02]} 64. Rh8 {[%clk 0:00:30.8]} 64... Ng4+ {[%clk 0:00:02.6]} 65.
Kd4 {[%clk 0:00:28.3]} 65... Nh6 {[%clk 0:00:03.1]} 66. a7 {[%clk 0:00:26.2]}
66... h1=Q {[%clk 0:00:03.6]} 67. a8=Q {[%clk 0:00:27.1]} 67... Qd1+ {[%clk
0:00:04.4]} 68. Kc5 {[%clk 0:00:26.6]} 68... Qc1+ {[%clk 0:00:04.6]} 69. Kd6
{[%clk 0:00:26.6]} 69... Qd2+ {[%clk 0:00:03.8]} 70. Kc7 {[%clk 0:00:24.1]}
70... Qxe3 {[%clk 0:00:02.5]} 71. Qc6+ {[%clk 0:00:24.1]} 71... Kh5 {[%clk
0:00:03]} 72. Rd8 {[%clk 0:00:17.6]} 72... Qf4+ {[%clk 0:00:02.7]} 73. Kc8
{[%clk 0:00:12.5]} 73... Qf5+ {[%clk 0:00:02.6]} 74. Rd7 {[%clk 0:00:13.1]}
74... Qf8+ {[%clk 0:00:02.3]} 75. Kb7 {[%clk 0:00:11.5]} 75... Qb4+ {[%clk
0:00:02.8]} 76. Kc7 {[%clk 0:00:12.1]} 76... Qf4+ {[%clk 0:00:02.9]} 77. Kc8
{[%clk 0:00:09.6]} 77... Qf8+ {[%clk 0:00:03.5]} 78. Rd8 {[%clk 0:00:10.3]}
78... Qf5+ {[%clk 0:00:04.2]} 79. Kb8 {[%clk 0:00:10.7]} 79... Qb1+ {[%clk
0:00:04.2]} 80. Ka8 {[%clk 0:00:10]} 80... Qa1+ {[%clk 0:00:04.8]} 81. Kb7
{[%clk 0:00:10.6]} 81... Qb1+ {[%clk 0:00:05.4]} 82. Kc7 {[%clk 0:00:10.2]}
82... Qg6 {[%clk 0:00:02.1]} 83. Rd5+ {[%clk 0:00:09.9]} 83... Nf5 {[%clk
0:00:02.7]} 84. Qd7 {[%clk 0:00:07.2]} 84... Kg5 {[%clk 0:00:02.6]} 85. Qd8+
{[%clk 0:00:05.6]} 85... Qf6 {[%clk 0:00:01.5]} 86. Qg8+ {[%clk 0:00:06.1]}
86... Qg6 {[%clk 0:00:01.9]} 87. Qd8+ {[%clk 0:00:06.1]} 87... Qf6 {[%clk
0:00:02.5]} 88. Qd7 {[%clk 0:00:06.7]} 88... Qg6 {[%clk 0:00:02.4]} 89. Kb7
{[%clk 0:00:06.2]} 89... Qf6 {[%clk 0:00:01.9]} 90. Rc5 {[%clk 0:00:05.3]} 90...
Qb2+ {[%clk 0:00:02.1]} 91. Kc8 {[%clk 0:00:05.1]} 91... Qf6 {[%clk 0:00:03]}
92. Kb7 {[%clk 0:00:04.1]} 92... Qb2+ {[%clk 0:00:02.9]} 93. Kc7 {[%clk
0:00:04.6]} 93... Qf6 {[%clk 0:00:03.8]} 94. Qd2+ {[%clk 0:00:04.1]} 94... Kg6
{[%clk 0:00:04.1]} 95. Qg2+ {[%clk 0:00:04.7]} 95... Kf7 {[%clk 0:00:04.8]} 96.
Kb7 {[%clk 0:00:05]} 96... Nd6+ {[%clk 0:00:04.7]} 97. Kc6 {[%clk 0:00:04.1]}
97... Ne4+ {[%clk 0:00:04.3]} 98. Kb5 {[%clk 0:00:04.3]} 98... Nxc5 {[%clk
0:00:03.7]} 99. Kxc5 {[%clk 0:00:05.2]} 99... Qe5+ {[%clk 0:00:04.2]} 100. Qd5+
{[%clk 0:00:05.1]} 100... Qxd5+ {[%clk 0:00:04.8]} 101. Kxd5 {[%clk 0:00:06]}
1/2-1/2

[Event "Early-Titled-Tuesday-Blitz-March-19-2024"]
[Site "Chess.com"]
[Date "2024.03.19"]
[Round "11"]
[White "adotand"]
[Black "PeshkaCh"]
[Result "0-1"]
[WhiteElo "2983"]
[BlackElo "2862"]
[TimeControl "180+1"]
[EndTime "10:09:14 PDT"]
[Termination "PeshkaCh won by resignation"]

1. e4 {[%clk 0:03:00.9]} 1... e5 {[%clk 0:03:00.1]} 2. Nf3 {[%clk 0:03:00.9]}
2... Nc6 {[%clk 0:03:00.6]} 3. Bb5 {[%clk 0:03:01.6]} 3... a6 {[%clk 0:03:00.8]}
4. Ba4 {[%clk 0:03:02.3]} 4... Nge7 {[%clk 0:03:01.4]} 5. h4 {[%clk 0:02:59.2]}
5... d6 {[%clk 0:02:56.9]} 6. c3 {[%clk 0:02:58.4]} 6... Ng6 {[%clk 0:02:50.5]}
7. d4 {[%clk 0:02:52.1]} 7... exd4 {[%clk 0:02:44.3]} 8. h5 {[%clk 0:02:49.6]}
8... Ne5 {[%clk 0:02:41.4]} 9. Nxd4 {[%clk 0:02:50.1]} 9... b5 {[%clk
0:02:37.5]} 10. Bb3 {[%clk 0:02:50.1]} 10... Bb7 {[%clk 0:02:12.5]} 11. Be3
{[%clk 0:02:43.3]} 11... Nxd4 {[%clk 0:02:11]} 12. cxd4 {[%clk 0:02:43.1]} 12...
Nc4 {[%clk 0:02:10.6]} 13. Bxc4 {[%clk 0:02:40.6]} 13... bxc4 {[%clk 0:02:11.5]}
14. Nc3 {[%clk 0:02:41.3]} 14... Qd7 {[%clk 0:02:09.2]} 15. d5 {[%clk
0:02:36.7]} 15... Be7 {[%clk 0:02:03]} 16. h6 {[%clk 0:02:36.8]} 16... gxh6
{[%clk 0:02:02.1]} 17. Rxh6 {[%clk 0:02:34.6]} 17... O-O-O {[%clk 0:02:02.3]}
18. Qd4 {[%clk 0:02:33]} 18... f5 {[%clk 0:02:01.3]} 19. O-O-O {[%clk
0:02:19.1]} 19... fxe4 {[%clk 0:01:59.8]} 20. Qxc4 {[%clk 0:02:16.4]} 20... Kb8
{[%clk 0:01:52]} 21. Qxe4 {[%clk 0:02:11.6]} 21... Bf8 {[%clk 0:01:19]} 22. Re6
{[%clk 0:02:05.8]} 22... Rg8 {[%clk 0:01:17.9]} 23. Kb1 {[%clk 0:02:00.9]} 23...
h5 {[%clk 0:01:15.9]} 24. Qd4 {[%clk 0:01:57.3]} 24... Rxg2 {[%clk 0:01:00.6]}
25. Rc1 {[%clk 0:01:56.7]} 25... Bg7 {[%clk 0:00:50.2]} 26. Qa7+ {[%clk
0:01:54.1]} 26... Kc8 {[%clk 0:00:50.8]} 27. Bd4 {[%clk 0:01:27]} 27... Bxd4
{[%clk 0:00:38.9]} 28. Qxd4 {[%clk 0:01:27.9]} 28... Kb8 {[%clk 0:00:29.3]} 29.
Qf6 {[%clk 0:01:19.7]} 29... Re8 {[%clk 0:00:25.8]} 30. Rce1 {[%clk 0:01:15]}
30... Reg8 {[%clk 0:00:24.3]} 31. f3 {[%clk 0:01:02.6]} 31... Qh7+ {[%clk
0:00:20.7]} 32. R1e4 {[%clk 0:00:56]} 32... h4 {[%clk 0:00:13.5]} 33. Qxh4
{[%clk 0:00:48.3]} 33... Qxh4 {[%clk 0:00:14]} 34. Rxh4 {[%clk 0:00:49.2]} 34...
Rf2 {[%clk 0:00:14.7]} 35. Rhe4 {[%clk 0:00:26.8]} 35... Rxf3 {[%clk 0:00:12]}
36. Re2 {[%clk 0:00:25.9]} 36... Bc8 {[%clk 0:00:10.3]} 37. Re7 {[%clk
0:00:23.7]} 37... Bf5+ {[%clk 0:00:09.9]} 38. Kc1 {[%clk 0:00:24.2]} 38... Rg1+
{[%clk 0:00:10.3]} 39. Re1 {[%clk 0:00:24.9]} 39... Rg2 {[%clk 0:00:10.7]} 40.
R7e2 {[%clk 0:00:25.2]} 40... Rgg3 {[%clk 0:00:10.4]} 41. a3 {[%clk 0:00:23.7]}
41... Kb7 {[%clk 0:00:10.2]} 42. Ne4 {[%clk 0:00:21]} 42... Rg4 {[%clk
0:00:06.2]} 43. Nc3 {[%clk 0:00:17]} 43... Rc4 {[%clk 0:00:06.5]} 44. Re3 {[%clk
0:00:15]} 44... Rf2 {[%clk 0:00:07]} 45. R1e2 {[%clk 0:00:15.5]} 45... Rf1+
{[%clk 0:00:07.7]} 46. Kd2 {[%clk 0:00:16.2]} 46... Rff4 {[%clk 0:00:07.6]} 47.
Rg3 {[%clk 0:00:15.4]} 47... Rfd4+ {[%clk 0:00:07.9]} 48. Ke1 {[%clk 0:00:16]}
48... Rc5 {[%clk 0:00:05]} 49. Rd2 {[%clk 0:00:14.4]} 49... Rh4 {[%clk
0:00:03.8]} 50. Re3 {[%clk 0:00:12]} 50... Rh1+ {[%clk 0:00:03.6]} 51. Ke2
{[%clk 0:00:12.3]} 51... Rh2+ {[%clk 0:00:04.3]} 52. Kd1 {[%clk 0:00:11.5]}
52... Rh1+ {[%clk 0:00:04.9]} 53. Ke2 {[%clk 0:00:09.7]} 53... Bg4+ {[%clk
0:00:05.5]} 54. Kd3 {[%clk 0:00:09.7]} 54... Bf5+ {[%clk 0:00:04.5]} 55. Kd4
{[%clk 0:00:10.2]} 55... Rh4+ {[%clk 0:00:04.3]} 56. Ne4 {[%clk 0:00:10.9]}
56... Rc1 {[%clk 0:00:03.9]} 57. Rde2 {[%clk 0:00:09.2]} 57... Rd1+ {[%clk
0:00:04.2]} 58. Kc4 {[%clk 0:00:09.7]} 58... Rf4 {[%clk 0:00:03.3]} 59. a4
{[%clk 0:00:08.3]} 59... a5 {[%clk 0:00:02.5]} 60. b3 {[%clk 0:00:08.2]} 60...
Kb6 {[%clk 0:00:03.1]} 61. Kc3 {[%clk 0:00:06.3]} 61... Rxd5 {[%clk 0:00:03.8]}
62. Nd2 {[%clk 0:00:05.5]} 62... Kb7 {[%clk 0:00:04.3]} 63. Nc4 {[%clk
0:00:05.9]} 63... Rc5 {[%clk 0:00:04.9]} 64. Kb2 {[%clk 0:00:06.4]} 64... Bd7
{[%clk 0:00:03.4]} 65. Nd2 {[%clk 0:00:05.8]} 65... Rb4 {[%clk 0:00:03]} 66. Ne4
{[%clk 0:00:05.5]} 66... Re5 {[%clk 0:00:02.2]} 67. Nd2 {[%clk 0:00:05.2]} 67...
Rxe3 {[%clk 0:00:02.3]} 68. Rxe3 {[%clk 0:00:06.1]} 68... Bxa4 {[%clk
0:00:03.1]} 69. Ka3 {[%clk 0:00:06.9]} 69... Bb5 {[%clk 0:00:03.3]} 70. Rc3
{[%clk 0:00:07.6]} 70... Rd4 {[%clk 0:00:03.5]} 71. Nb1 {[%clk 0:00:07.5]} 71...
Kb6 {[%clk 0:00:04]} 72. Kb2 {[%clk 0:00:08.1]} 72... a4 {[%clk 0:00:03.1]} 73.
Na3 {[%clk 0:00:07.4]} 73... axb3 {[%clk 0:00:02.4]} 74. Nxb5 {[%clk 0:00:07.7]}
74... Kxb5 {[%clk 0:00:02.5]} 75. Rxc7 {[%clk 0:00:08.5]} 75... Kb4 {[%clk
0:00:02.2]} 76. Rb7+ {[%clk 0:00:08.8]} 76... Kc4 {[%clk 0:00:02.8]} 77. Rc7+
{[%clk 0:00:08.6]} 77... Kb4 {[%clk 0:00:03.4]} 78. Rb7+ {[%clk 0:00:08.7]}
78... Ka4 {[%clk 0:00:02.5]} 79. Ra7+ {[%clk 0:00:07.8]} 79... Kb5 {[%clk
0:00:03.1]} 80. Rb7+ {[%clk 0:00:08.5]} 80... Kc4 {[%clk 0:00:03.2]} 81. Rc7+
{[%clk 0:00:08.7]} 81... Kd3 {[%clk 0:00:03.8]} 82. Kxb3 {[%clk 0:00:09.1]}
82... Rd5 {[%clk 0:00:04.5]} 83. Kb2 {[%clk 0:00:09.2]} 83... Rb5+ {[%clk
0:00:03.1]} 84. Ka2 {[%clk 0:00:08.8]} 84... d5 {[%clk 0:00:03.3]} 85. Rd7
{[%clk 0:00:09.4]} 85... d4 {[%clk 0:00:03.7]} 86. Ka3 {[%clk 0:00:10.2]} 86...
Rb8 {[%clk 0:00:03.5]} 87. Ka2 {[%clk 0:00:10.6]} 87... Kc3 {[%clk 0:00:03]} 88.
Rh7 {[%clk 0:00:11.2]} 88... d3 {[%clk 0:00:03]} 89. Rc7+ {[%clk 0:00:10.8]}
89... Kd2 {[%clk 0:00:03.5]} 90. Rh7 {[%clk 0:00:11.4]} 90... Kc2 {[%clk
0:00:03]} 91. Rc7+ {[%clk 0:00:11.6]} 91... Kd2 {[%clk 0:00:03.2]} 92. Rh7
{[%clk 0:00:12.1]} 92... Rb4 {[%clk 0:00:03.7]} 93. Ka3 {[%clk 0:00:12.2]} 93...
Rb6 {[%clk 0:00:04.4]} 94. Ka2 {[%clk 0:00:12.2]} 94... Kc3 {[%clk 0:00:03]} 95.
Rc7+ {[%clk 0:00:12.6]} 95... Kd2 {[%clk 0:00:03.7]} 96. Rh7 {[%clk 0:00:12.9]}
96... Rb5 {[%clk 0:00:04.3]} 97. Ka3 {[%clk 0:00:12.8]} 97... Kd1 {[%clk
0:00:04.6]} 98. Rh1+ {[%clk 0:00:12.7]} 98... Kc2 {[%clk 0:00:05]} 99. Rh7
{[%clk 0:00:10.6]} 99... d2 {[%clk 0:00:05.4]} 100. Rc7+ {[%clk 0:00:11.2]}
100... Kd3 {[%clk 0:00:06.1]} 101. Rd7+ {[%clk 0:00:11.9]} 101... Kc3 {[%clk
0:00:06.8]} 102. Rc7+ {[%clk 0:00:10.6]} 102... Kd4 {[%clk 0:00:07.1]} 103. Rd7+
{[%clk 0:00:11.1]} 103... Rd5 {[%clk 0:00:07.3]} 104. Rxd5+ {[%clk 0:00:11.7]}
104... Kxd5 {[%clk 0:00:08.2]} 0-1

[Event "Early-Titled-Tuesday-Blitz-March-19-2024"]
[Site "Chess.com"]
[Date "2024.03.19"]
[Round "11"]
[White "Lion-Al-Messi"]
[Black "rhwr"]
[Result "1-0"]
[WhiteElo "2588"]
[BlackElo "2325"]
[TimeControl "180+1"]
[EndTime "10:09:18 PDT"]
[Termination "Lion-Al-Messi won by checkmate"]

1. e4 {[%clk 0:03:00.9]} 1... c5 {[%clk 0:02:58.7]} 2. Nf3 {[%clk 0:03:00.1]}
2... d6 {[%clk 0:02:58.1]} 3. d4 {[%clk 0:03:00.7]} 3... cxd4 {[%clk 0:02:57.8]}
4. Nxd4 {[%clk 0:03:01.6]} 4... Nf6 {[%clk 0:02:57.7]} 5. Nc3 {[%clk 0:02:55.4]}
5... e5 {[%clk 0:02:57.4]} 6. Nb3 {[%clk 0:02:53.9]} 6... Be6 {[%clk 0:02:56.7]}
7. f3 {[%clk 0:02:51.9]} 7... Be7 {[%clk 0:02:56.1]} 8. g4 {[%clk 0:02:50.5]}
8... h6 {[%clk 0:02:55.4]} 9. Nd5 {[%clk 0:02:38.9]} 9... Nxd5 {[%clk
0:02:51.1]} 10. exd5 {[%clk 0:02:38.9]} 10... Bh4+ {[%clk 0:02:51.6]} 11. Ke2
{[%clk 0:02:37.6]} 11... Bd7 {[%clk 0:02:51.1]} 12. Be3 {[%clk 0:02:37.2]} 12...
Bb5+ {[%clk 0:02:44.4]} 13. Kd2 {[%clk 0:02:37.3]} 13... Bxf1 {[%clk 0:02:37.5]}
14. Qxf1 {[%clk 0:02:38.2]} 14... O-O {[%clk 0:02:37.3]} 15. Qd3 {[%clk
0:02:37.2]} 15... Nd7 {[%clk 0:02:32.3]} 16. c3 {[%clk 0:02:32.3]} 16... b6
{[%clk 0:02:30.5]} 17. Rad1 {[%clk 0:02:28.5]} 17... Nc5 {[%clk 0:02:30.5]} 18.
Nxc5 {[%clk 0:02:26.8]} 18... bxc5 {[%clk 0:02:30.4]} 19. c4 {[%clk 0:02:26.3]}
19... Qa5+ {[%clk 0:02:28.3]} 20. Qc3 {[%clk 0:02:26.5]} 20... Qa4 {[%clk
0:02:14.7]} 21. Kd3 {[%clk 0:02:19.5]} 21... Rab8 {[%clk 0:02:06.1]} 22. Ra1
{[%clk 0:02:01.7]} 22... f5 {[%clk 0:02:05.1]} 23. b3 {[%clk 0:02:01.3]} 23...
Qd7 {[%clk 0:02:04.8]} 24. Rhg1 {[%clk 0:01:53.4]} 24... e4+ {[%clk 0:02:01.5]}
25. fxe4 {[%clk 0:01:51.1]} 25... fxe4+ {[%clk 0:01:57.7]} 26. Kc2 {[%clk
0:01:50.1]} 26... Bf6 {[%clk 0:01:57.6]} 27. Qd2 {[%clk 0:01:44.7]} 27... Bxa1
{[%clk 0:01:57.6]} 28. Rxa1 {[%clk 0:01:45.6]} 28... Qxg4 {[%clk 0:01:56.8]} 29.
Rg1 {[%clk 0:01:45.3]} 29... Qf5 {[%clk 0:01:51.5]} 30. Qg2 {[%clk 0:01:42.3]}
30... Rf7 {[%clk 0:01:49.2]} 31. Qg3 {[%clk 0:01:42.1]} 31... Qf6 {[%clk
0:01:44.5]} 32. Bxc5 {[%clk 0:01:36.9]} 32... Rd8 {[%clk 0:01:36.4]} 33. Be3
{[%clk 0:01:35.1]} 33... Rdd7 {[%clk 0:01:30.9]} 34. h4 {[%clk 0:01:11.9]} 34...
Kh7 {[%clk 0:01:26.5]} 35. h5 {[%clk 0:01:11.9]} 35... Qf5 {[%clk 0:01:18.9]}
36. Qg6+ {[%clk 0:01:11.5]} 36... Kh8 {[%clk 0:01:13.5]} 37. Rg2 {[%clk
0:00:44.8]} 37... Qxg6 {[%clk 0:01:09]} 38. hxg6 {[%clk 0:00:42.4]} 38... Rf3
{[%clk 0:01:07.7]} 39. Bd4 {[%clk 0:00:37.6]} 39... Rd3 {[%clk 0:00:59.9]} 40.
Bc3 {[%clk 0:00:34.4]} 40... Rd8 {[%clk 0:00:53.9]} 41. Rf2 {[%clk 0:00:33.8]}
41... Rf3 {[%clk 0:00:51.6]} 42. Rh2 {[%clk 0:00:31.3]} 42... Kg8 {[%clk
0:00:49.9]} 43. Bd4 {[%clk 0:00:30.8]} 43... a6 {[%clk 0:00:46]} 44. Re2 {[%clk
0:00:30.8]} 44... Re8 {[%clk 0:00:46]} 45. a4 {[%clk 0:00:30.8]} 45... Rg3
{[%clk 0:00:43.4]} 46. b4 {[%clk 0:00:30.5]} 46... Rxg6 {[%clk 0:00:42.4]} 47.
b5 {[%clk 0:00:30.8]} 47... axb5 {[%clk 0:00:42.6]} 48. axb5 {[%clk 0:00:29.7]}
48... Rg3 {[%clk 0:00:41.8]} 49. b6 {[%clk 0:00:29.1]} 49... Ra3 {[%clk
0:00:36]} 50. Kb2 {[%clk 0:00:25.7]} 50... Rd3 {[%clk 0:00:33.7]} 51. Bc3 {[%clk
0:00:20.1]} 51... Rb8 {[%clk 0:00:32.2]} 52. Rxe4 {[%clk 0:00:20.2]} 52... Rxb6+
{[%clk 0:00:32.1]} 53. Kc2 {[%clk 0:00:20.6]} 53... Rg3 {[%clk 0:00:31.2]} 54.
Re6 {[%clk 0:00:19.3]} 54... h5 {[%clk 0:00:30.3]} 55. c5 {[%clk 0:00:19.3]}
55... Rb8 {[%clk 0:00:27.5]} 56. c6 {[%clk 0:00:15.6]} 56... Rc8 {[%clk
0:00:26.4]} 57. Rxd6 {[%clk 0:00:07.5]} 57... h4 {[%clk 0:00:25.7]} 58. Be5
{[%clk 0:00:08]} 58... Rg2+ {[%clk 0:00:25.7]} 59. Kd3 {[%clk 0:00:07.9]} 59...
h3 {[%clk 0:00:26.6]} 60. Rd7 {[%clk 0:00:04.5]} 60... h2 {[%clk 0:00:25.9]} 61.
Bxh2 {[%clk 0:00:04.8]} 61... Rxh2 {[%clk 0:00:25.8]} 62. c7 {[%clk 0:00:05.3]}
62... Kh7 {[%clk 0:00:24.8]} 63. d6 {[%clk 0:00:05.3]} 63... Kg6 {[%clk
0:00:20.3]} 64. Rd8 {[%clk 0:00:05.5]} 64... Rh8 {[%clk 0:00:21.2]} 65. Rxc8
{[%clk 0:00:05.2]} 65... Rxc8 {[%clk 0:00:21.5]} 66. d7 {[%clk 0:00:05.9]} 66...
Rxc7 {[%clk 0:00:20]} 67. d8=Q {[%clk 0:00:06.2]} 67... Rf7 {[%clk 0:00:20.7]}
68. Qe8 {[%clk 0:00:06.6]} 68... Kf6 {[%clk 0:00:20.1]} 69. Qd8+ {[%clk
0:00:07.1]} 69... Kg6 {[%clk 0:00:20.1]} 70. Qd6+ {[%clk 0:00:07.3]} 70... Rf6
{[%clk 0:00:19.9]} 71. Qg3+ {[%clk 0:00:08.2]} 71... Kh7 {[%clk 0:00:19.6]} 72.
Ke4 {[%clk 0:00:08.4]} 72... Kg8 {[%clk 0:00:18.8]} 73. Ke5 {[%clk 0:00:08.5]}
73... Kh7 {[%clk 0:00:19]} 74. Qh4+ {[%clk 0:00:08.4]} 74... Kg8 {[%clk
0:00:19.3]} 75. Qh5 {[%clk 0:00:07.5]} 75... Kf8 {[%clk 0:00:19.2]} 76. Qh8+
{[%clk 0:00:07.6]} 76... Kf7 {[%clk 0:00:19.6]} 77. Qh5+ {[%clk 0:00:06.9]}
77... Kf8 {[%clk 0:00:19.9]} 78. Qe2 {[%clk 0:00:06.4]} 78... Kf7 {[%clk
0:00:20]} 79. Qd3 {[%clk 0:00:06.6]} 79... Kg8 {[%clk 0:00:20.1]} 80. Qd7 {[%clk
0:00:06.6]} 80... Kh7 {[%clk 0:00:19.9]} 81. Qe8 {[%clk 0:00:06.7]} 81... Kh6
{[%clk 0:00:19.8]} 82. Qg8 {[%clk 0:00:06.3]} 82... Kg6 {[%clk 0:00:19.8]} 83.
Ke4 {[%clk 0:00:04.6]} 83... Kh6 {[%clk 0:00:19.6]} 84. Qh8+ {[%clk 0:00:05.1]}
84... Kg6 {[%clk 0:00:19.8]} 85. Qh3 {[%clk 0:00:05.1]} 85... Kf7 {[%clk
0:00:20.1]} 86. Qh5+ {[%clk 0:00:05.4]} 86... Kf8 {[%clk 0:00:20.4]} 87. Qc5+
{[%clk 0:00:05.1]} 87... Kg8 {[%clk 0:00:20.7]} 88. Qc4+ {[%clk 0:00:05.5]}
88... Kh7 {[%clk 0:00:20.8]} 89. Ke3 {[%clk 0:00:05]} 89... Kg6 {[%clk
0:00:20.9]} 90. Qg8 {[%clk 0:00:04.6]} 90... Kh6 {[%clk 0:00:20.9]} 91. Qh8+
{[%clk 0:00:05]} 91... Kg6 {[%clk 0:00:21.2]} 92. Qg8 {[%clk 0:00:05.4]} 92...
Kh6 {[%clk 0:00:21.4]} 93. Ke2 {[%clk 0:00:05.8]} 93... Kg6 {[%clk 0:00:21.6]}
94. Kd2 {[%clk 0:00:06.2]} 94... Kh6 {[%clk 0:00:21.9]} 95. Ke3 {[%clk
0:00:06.5]} 95... Kg6 {[%clk 0:00:22.4]} 96. Qa8 {[%clk 0:00:06.6]} 96... Kh6
{[%clk 0:00:22.9]} 97. Qh1+ {[%clk 0:00:06.7]} 97... Kg6 {[%clk 0:00:23.1]} 98.
Qb1+ {[%clk 0:00:07.1]} 98... Kh6 {[%clk 0:00:23.3]} 99. Qe4 {[%clk 0:00:07.3]}
99... Kh5 {[%clk 0:00:20.4]} 100. Qh7+ {[%clk 0:00:07.4]} 100... Kg5 {[%clk
0:00:18.8]} 101. Qxg7+ {[%clk 0:00:07.6]} 101... Rg6 {[%clk 0:00:19.1]} 102.
Qe5+ {[%clk 0:00:07.2]} 102... Kh6 {[%clk 0:00:19.3]} 103. Kf4 {[%clk
0:00:07.5]} 103... Kh7 {[%clk 0:00:19.2]} 104. Qe7+ {[%clk 0:00:07.4]} 104...
Kh6 {[%clk 0:00:19.2]} 105. Qf8+ {[%clk 0:00:07.1]} 105... Kh5 {[%clk
0:00:18.9]} 106. Qh8+ {[%clk 0:00:06.6]} 106... Rh6 {[%clk 0:00:18.1]} 107. Qg7
{[%clk 0:00:06.3]} 107... Rg6 {[%clk 0:00:17.7]} 108. Qh7+ {[%clk 0:00:06.6]}
108... Rh6 {[%clk 0:00:17.7]} 109. Qf5+ {[%clk 0:00:07.2]} 109... Kh4 {[%clk
0:00:12.3]} 110. Qg5+ {[%clk 0:00:07.4]} 110... Kh3 {[%clk 0:00:09.2]} 111. Qg3#
{[%clk 0:00:08.3]} 1-0